lending/lending_fUSD_20260411
["ID","MTS","AMOUNT","RATE_DAILY","PERIOD"]
[420289819,1775913051880,-150.0,0.00015268,2]
[420289820,1775913051890,-150.0,0.00015274,2]
[420289821,1775913051903,-150.0,0.00015277,2]
[420289822,1775913051918,-150.0,0.00015277,2]
[420289823,1775913051933,-150.0,0.00015283,2]
[420289824,1775913051945,-150.0,0.00015283,2]
[420289825,1775913051961,-150.0,0.00015287,2]
[420289826,1775913051975,-150.0,0.00015287,2]
[420289827,1775913051989,-150.0,0.00015291,2]
[420289828,1775913052010,-150.0,0.00015291,2]
[420289829,1775913052029,-500.0,0.00015299,5]
[420289830,1775913052041,-150.0,0.00015301,2]
[420289831,1775913052058,-150.0,0.00015309,2]
[420289832,1775913052076,-150.0,0.0001531,2]
[420289833,1775913052087,-150.0,0.00015311,2]
[420289834,1775913052099,-150.0,0.00015311,2]
[420289835,1775913052119,-150.0,0.00015314,2]
[420289836,1775913052130,-150.0,0.00015314,2]
[420289837,1775913052147,-150.0,0.00015325,2]
[420289838,1775913052165,-150.0,0.00015326,2]
[420289839,1775913052177,-150.0,0.00015329,2]
[420289840,1775913052189,-150.0,0.00015333,2]
[420289841,1775913052207,-150.0,0.00015337,2]
[420289842,1775913052217,-150.0,0.00015338,2]
[420289843,1775913052230,-150.0,0.00015339,2]
[420289844,1775913052245,-150.0,0.00015343,2]
[420289845,1775913052259,-150.0,0.00015344,2]
[420289846,1775913052270,-150.0,0.00015345,2]
[420289847,1775913052289,-150.0,0.00015349,2]
[420289848,1775913052301,-150.0,0.00015356,2]
[420289849,1775913052312,-150.0,0.0001536,2]
[420289850,1775913052329,-150.0,0.00015361,2]
[420289851,1775913052344,-150.0,0.00015366,2]
[420289852,1775913052356,-150.0,0.00015366,2]
[420289853,1775913052367,-150.0,0.00015373,2]
[420289854,1775913052379,-150.0,0.00015375,2]
[420289855,1775913052391,-150.0,0.00015379,2]
[420289856,1775913052403,-150.0,0.0001538,2]
[420289857,1775913052414,-150.0,0.00015383,2]
[420289858,1775913052429,-150.0,0.00015388,2]
[420289859,1775913052439,-150.0,0.00015394,2]
[420289860,1775913052450,-150.0,0.00015396,2]
[420289861,1775913052460,-150.0,0.00015397,2]
[420289862,1775913052474,-150.0,0.00015403,2]
[420289863,1775913052487,-150.0,0.00015406,2]
[420289864,1775913052498,-150.0,0.00015406,2]
[420289865,1775913052511,-150.0,0.00015414,2]
[420289866,1775913052526,-150.0,0.00015416,2]
[420289867,1775913052537,-150.0,0.00015421,2]
[420289868,1775913052550,-150.0,0.00015422,2]
[420289869,1775913052570,-150.0,0.00015422,2]
[420289870,1775913052586,-150.0,0.00015425,2]
[420289871,1775913052601,-150.0,0.00015426,2]
[420289872,1775913052617,-150.0,0.00015429,2]
[420289873,1775913052628,-150.0,0.00015431,2]
[420289874,1775913052638,-150.0,0.00015433,2]
[420289875,1775913052653,-150.0,0.00015436,2]
[420289876,1775913052669,-150.0,0.00015438,2]
[420289877,1775913052681,-150.0,0.00015445,2]
[420289878,1775913052694,-150.0,0.00015449,2]
[420289879,1775913052714,-150.0,0.00015449,2]
[420289880,1775913052727,-150.0,0.0001545,2]
[420289881,1775913052742,-150.0,0.00015451,2]
[420289882,1775913052765,-150.0,0.00015466,2]
[420289883,1775913052780,-150.0,0.00015467,2]
[420289884,1775913052796,-150.0,0.00015469,2]
[420289885,1775913052819,-415.49,0.00015471,2]
[420289886,1775913052840,-150.0,0.00015471,2]
[420289887,1775913052859,-150.0,0.00015473,2]
[420289888,1775913052878,-150.0,0.00015474,2]
[420289889,1775913052899,-150.0,0.00015478,2]
[420289890,1775913052911,-150.0,0.00015478,2]
[420289891,1775913052930,-150.0,0.00015484,2]
[420289892,1775913052946,-150.0,0.00015488,2]
[420289893,1775913052960,-178.3492717,0.00015489,2]
[420289894,1775913052983,-150.0,0.00015493,2]
[420289895,1775913053009,-178.3492717,0.00015495,2]
[420289896,1775913053026,-150.0,0.00015496,2]
[420289897,1775913053037,-150.0,0.00015497,2]
[420289898,1775913053062,-150.0,0.00015497,2]
[420289899,1775913053077,-2031.73097296,0.000155,2]
[420289900,1775913053112,-945.88735063,0.000155,2]
[420289901,1775913053467,-1942.56336472,0.000155,2]
[420289902,1775913053480,-178.3492717,0.000155,2]
[420289903,1775913053504,-150.0,0.00015501,2]
[420289904,1775913053515,-150.0,0.00015506,2]
[420289905,1775913053550,-150.0,0.00015507,2]
[420289906,1775913053575,-150.0,0.00015517,2]
[420289907,1775913053589,-150.0,0.00015519,2]
[420289908,1775913053602,-150.0,0.00015519,2]
[420289909,1775913053619,-150.0,0.0001552,2]
[420289910,1775913053632,-150.0,0.00015528,2]
[420289911,1775913053672,-150.0,0.00015533,2]
[420289912,1775913053689,-150.0,0.00015533,2]
[420289913,1775913053704,-150.0,0.00015536,2]
[420289914,1775913053719,-150.0,0.00015539,2]
[420289915,1775913053734,-150.0,0.00015541,2]
[420289916,1775913053751,-150.0,0.00015543,2]
[420289917,1775913053771,-150.0,0.00015543,2]
[420289918,1775913053783,-1339.69473776,0.0001555,2]
[420289919,1775913053803,-150.0,0.00015554,2]
[420289920,1775913053816,-150.0,0.00015558,2]
[420289921,1775913053828,-150.0,0.00015561,2]
[420289922,1775913053851,-20901.0,0.00015562,2]
[420289923,1775913053865,-150.0,0.00015565,2]
[420289924,1775913053889,-150.0,0.00015566,2]
[420289925,1775913053900,-150.0,0.00015566,2]
[420289926,1775913053912,-150.0,0.00015572,2]
[420289927,1775913053931,-237.21736,0.00015573,2]
[420289928,1775913053943,-500.0,0.00015573,2]
[420289929,1775913053954,-500.0,0.00015573,2]
[420289930,1775913053971,-500.0,0.00015573,2]
[420289931,1775913053986,-291.62336101,0.00015589,2]
[420289932,1775913053997,-179.4817088,0.00015589,2]
[420289933,1775913054015,-216.08938292,0.00015589,2]
[420289934,1775913054029,-225.89548749,0.00015589,2]
[420289935,1775913054040,-223.27324399,0.00015589,2]
[420289936,1775913054055,-259.74988375,0.00015589,2]
[420289937,1775913054069,-176.6837889,0.00015589,2]
[420289938,1775913054081,-164.97415805,0.00015589,2]
[420289939,1775913054093,-298.96442628,0.00015589,2]
[420289940,1775913054109,-158.13442073,0.00015589,2]
[420289941,1775913054120,-173.69027535,0.00015589,2]
[420289942,1775913054131,-210.69904595,0.00015589,2]
[420289943,1775913054153,-285.31876457,0.00015589,2]
[420289944,1775913054166,-150.0,0.0001559,2]
[420289945,1775913054180,-359.80706615,0.0001559,2]
[420289946,1775913054196,-690380.64477335,0.000156,2]
[420289947,1775913056147,-151.0,0.00011898,2]
[420289948,1775913056157,-990.6,0.000155,2]
[420289949,1775913056481,-0.96,0.000155,2]
[420289950,1775913147009,1000.0,0.00027397,120]
[420289951,1775913147726,1000.0,0.00030137,120]
[420289952,1775913191655,250.0,0.0003,120]
[420289953,1775913192485,359.0,0.0003,120]
[420289954,1775913201173,500.0,0.0002512,120]
[420289955,1775913201694,500.0,0.0002722,120]
[420289956,1775913233070,638.09868286,0.0003013,120]
[420289957,1775913311200,287.0,0.0003,120]
[420289958,1775913313431,191.0,0.0003,120]
[420289959,1775913400443,500.0,0.00030136,120]
[420289960,1775913401356,500.0,0.00030136,120]
[420289961,1775913437746,1750.0,0.00029799,120]
[420289962,1775913437997,1750.0,0.00029799,120]
[420289963,1775913438266,1608.0,0.00029799,120]
[420289964,1775913449609,300.0,0.0003,120]
[420289965,1775913450121,222.0,0.0003,120]
[420289966,1775913501215,1000.0,0.00030136,120]
[420289967,1775913518370,2000.0,0.00030136,120]
[420289968,1775913548464,200.0,0.000293,120]
[420289969,1775913549247,316.0,0.000293,120]
[420289970,1775913556682,250.0,0.00029225,120]
[420289971,1775913557463,250.0,0.00029225,120]
[420289972,1775913558293,242.0,0.00029225,120]
[420289973,1775913574683,2221.31576084,0.00030136,120]
[420289974,1775913596881,1588.5,0.0002737,120]
[420289975,1775913597449,1588.5,0.0002737,120]
[420289976,1775913638743,1444.0,0.00026137,120]
[420289977,1775913668127,200.0,0.00029006,120]
[420289978,1775913669003,254.0,0.00029006,120]
[420289979,1775913671007,230.202,0.00030137,120]
[420289980,1775913675427,219.0,0.00029043,120]
[420289981,1775913691566,-1657.266,8.573e-05,2]
[420289982,1775913691609,-167.741,8.573e-05,2]
[420289983,1775913756631,1000.0,0.00027397,120]
[420289984,1775913756739,1000.0,0.00030137,120]
[420289985,1775913800456,176.588056,0.0002512,120]
[420289986,1775913800831,500.0,0.0002722,120]
[420289987,1775913851663,-1200.0,8.746e-05,2]
[420289988,1775913852234,-300.0,8.746e-05,2]
[420289989,1775913852265,-300.0,8.746e-05,2]
[420289990,1775913852292,-250.0,8.746e-05,2]
[420289991,1775913852332,-250.0,8.747e-05,2]
[420289992,1775913852378,-500.0,8.747e-05,2]
[420289993,1775913852433,-500.0,8.747e-05,2]
[420289994,1775913852502,-500.0,8.747e-05,2]
[420289995,1775913852547,-500.0,8.747e-05,2]
[420289996,1775913852575,-624.066416,8.747e-05,2]
[420289997,1775913852607,-500.0,8.747e-05,2]
[420289998,1775913852659,-631.006773,8.747e-05,2]
[420289999,1775913852700,-150.0,8.747e-05,2]
[420290000,1775913852755,-3794.926811,8.748e-05,2]
[420290001,1775913856455,-10000.0,8.748e-05,2]
[420290002,1775913862951,-7868.0,8.748e-05,2]
[420290003,1775913893598,-500.0,8.747e-05,2]
[420290004,1775913893630,-568.90490928,8.747e-05,2]
[420290005,1775913893657,-8931.09509072,8.748e-05,2]
[420290006,1775913899692,-9745.0,8.748e-05,2]
[420290007,1775913927949,-300.0,8.747e-05,2]
[420290008,1775913927980,-1199.95308627,8.747e-05,3]
[420290009,1775913928009,-250.0,8.747e-05,2]
[420290010,1775913928041,-8250.04691373,8.748e-05,2]
[420290011,1775913929727,-10000.0,8.748e-05,2]
[420290012,1775913931434,-10000.0,8.748e-05,2]
[420290013,1775913932564,-6460.56078455,8.748e-05,2]
[420290014,1775913932602,-3539.43921545,8.748e-05,2]
[420290015,1775913934022,-10000.0,8.748e-05,2]
[420290016,1775913937177,-10000.0,8.748e-05,2]
[420290017,1775913943165,-2800.0,8.648e-05,2]
[420290018,1775914017458,-9243.5131,8.648e-05,2]
[420290019,1775914062119,1570.40020252,0.00027397,120]
[420290020,1775914180150,161.0,0.0003013,120]
[420290021,1775914196606,1604.0,0.0002737,120]
[420290022,1775914197132,1604.0,0.0002737,120]
[420290024,1775914231867,-5808.96,8.648e-05,2]
[420290025,1775914231879,-2528.7961,8.648e-05,2]
[420290026,1775914231900,-150.0,8.747e-05,2]
[420290027,1775914231910,-8016.73637044,8.748e-05,2]
[420290028,1775914231924,-1097.89225197,8.748e-05,2]
[420290029,1775914231947,-255.51004428,8.748e-05,2]
[420290030,1775914231959,-11237.48396771,8.748e-05,2]
[420290031,1775914231971,-8353.76,8.748e-05,2]
[420290032,1775914231995,-404.4444174,8.748e-05,2]
[420290033,1775914232010,-1104.87341297,8.748e-05,2]
[420290034,1775914232030,-867.61452967,8.748e-05,2]
[420290035,1775914232044,-6795.66958523,8.748e-05,2]
[420290036,1775914232080,-379961.30900488,8.748e-05,2]
[420290037,1775914232097,-250.0,9.513e-05,2]
[420290038,1775914232109,-250.0,9.622e-05,2]
[420290039,1775914232123,-255.0,9.622e-05,2]
[420290040,1775914232141,-250.0,9.623e-05,2]
[420290041,1775914232156,-4999.99,0.0001,2]
[420290043,1775914232174,-200.0,0.0001,2]
[420290045,1775914232196,-151.0,0.0001,2]
[420290047,1775914232226,-328.0,0.00010584,2]
[420290049,1775914232237,-150.0,0.000109,2]
[420290051,1775914232266,-1482.07,0.00010959,2]
[420290052,1775914232275,-500.0,0.00010959,2]
[420290053,1775914232291,-231.46175903,0.00010959,2]
[420290054,1775914232319,-24212.4626787,0.00011099,2]
[420290055,1775914232330,-8229.42324639,0.00011099,2]
[420290056,1775914232363,-8229.42324637,0.00011412,2]
[420290057,1775914232373,-24212.46267863,0.00011412,2]
[420290058,1775914232415,-151.0,0.00012133,2]
[420290059,1775914232453,-157.64,0.00012144,2]
[420290060,1775914232486,-169.8859,0.000122,2]
[420290061,1775914232503,-845.18,0.00012258,2]
[420290062,1775914232516,-1600.0,0.00012276,2]
[420290063,1775914232537,-690.84,0.00012751,2]
[420290064,1775914232553,-500.0,0.00012892,2]
[420290065,1775914232565,-500.0,0.00012892,3]
[420290066,1775914232574,-500.0,0.00012892,4]
[420290067,1775914232596,-159.19,0.00012932,2]
[420290068,1775914232606,-151.0,0.00013091,5]
[420290069,1775914232618,-10928.34108251,0.00013242,2]
[420290070,1775914232642,-427.65,0.00013242,2]
[420290071,1775914232656,-400.0,0.00013242,2]
[420290073,1775914238263,-422.81846671,0.00013242,2]
[420290074,1775914238397,-557.87133531,0.00013242,2]
[420290195,1775914247021,-529.86,0.00013242,2]
[420290209,1775914328709,-300.0,8.647e-05,2]
[420290210,1775914328754,-9700.0,8.648e-05,2]
[420290211,1775914354954,1174.0,0.0003013,120]
[420290212,1775914357091,181.0,0.0003013,120]
[420290213,1775914372571,-1000.0,8.647e-05,2]
[420290214,1775914372620,-71.0,8.648e-05,2]
[420290215,1775914415054,365.0,0.0003013,120]
[420290216,1775914418687,1138.53822678,0.00026137,120]
[420290217,1775914447913,150.0,0.00028,120]
[420290218,1775914449145,250.0,0.00028,120]
[420290219,1775914459471,650.0,0.00027999,120]
[420290220,1775914460279,650.0,0.00027999,120]
[420290221,1775914461080,616.0,0.00027999,120]
[420290222,1775914525882,500.0,0.0003013,120]
[420290223,1775914534383,200.0,0.00030136,120]
[420290224,1775914534936,200.0,0.00030136,120]
[420290225,1775914535458,200.0,0.00030136,120]
[420290226,1775914535863,200.0,0.00030136,120]
[420290227,1775914569351,650.0,0.00027397,120]
[420290228,1775914570239,650.0,0.00027397,120]
[420290229,1775914571005,635.0,0.00027397,120]
[420290230,1775914586943,1050.0,0.00027123,120]
[420290231,1775914587707,1050.0,0.00027123,120]
[420290232,1775914588650,990.0,0.00027123,120]
[420290233,1775914687686,500.0,0.00030136,120]
[420290234,1775914697322,1050.0,0.00026493,120]
[420290235,1775914698067,1050.0,0.00026493,120]
[420290236,1775914698904,1028.0,0.00026493,120]
[420290238,1775914724204,356.0,0.0003013,120]
[420290240,1775914742964,1802.1866,8.548e-05,2]
[420290241,1775914788762,917.0,0.0003013,120]
[420290242,1775914796697,2270.0,0.0002737,120]
[420290243,1775914797287,2270.0,0.0002737,120]
[420290244,1775914815886,1796.69859404,0.00030136,120]
[420290246,1775914847702,166.6666,0.00030136,120]
[420290247,1775914848235,166.6666,0.00030136,120]
[420290248,1775914848591,166.6668,0.00030136,120]
[420290249,1775914865431,150.0,0.000301,120]
[420290250,1775914888090,300.0,0.00030136,120]
[420290251,1775914888737,1843.708,8.475e-05,2]
[420290252,1775914888852,167.741,8.475e-05,2]
[420290253,1775914949511,500.0,0.00030136,120]
[420290254,1775914957839,300.0,0.00030136,120]
[420290255,1775914969372,1000.0,0.00030136,120]
[420290256,1775914987955,300.0,0.00030136,120]
[420290257,1775915002655,1791.98,0.00030136,120]
[420290258,1775915015697,300.0,0.00030136,120]
[420290259,1775915040855,300.0,0.00030136,120]
[420290260,1775915051039,450.0,0.000249,120]
[420290261,1775915051833,450.0,0.000249,120]
[420290262,1775915052631,344.0,0.000249,120]
[420290263,1775915071002,43226.3,0.00030136,120]
[420290264,1775915078707,300.0,0.00030136,120]
[420290265,1775915115785,300.0,0.00030136,120]
[420290267,1775915161290,200.0,0.0003,120]
[420290268,1775915162126,500.0,0.0003013,120]
[420290269,1775915220494,150.0,0.00030136,120]
[420290270,1775915339122,2000.0,0.00030136,120]
[420290271,1775915396883,1962.0,0.0002737,120]
[420290272,1775915397937,1962.0,0.0002737,120]
[420290273,1775915398012,159.98,0.00030137,120]
[420290274,1775915409328,6186.3744,8.548e-05,2]
[420290275,1775915409402,10000.01,8.548e-05,2]
[420290276,1775915409457,10000.01,8.548e-05,2]
[420290277,1775915409551,10000.01,8.548e-05,2]
[420290278,1775915409744,10000.01,8.548e-05,2]
[420290279,1775915409943,10000.01,8.548e-05,2]
[420290280,1775915410068,10000.01,8.548e-05,2]
[420290281,1775915410142,10000.01,8.548e-05,2]
[420290282,1775915410306,10000.01,8.548e-05,2]
[420290283,1775915410435,10000.01,8.548e-05,2]
[420290284,1775915415511,-8848.37286503,8.548e-05,2]
[420290285,1775915415613,-10000.01,8.548e-05,2]
[420290286,1775915416364,-10000.01,8.548e-05,2]
[420290287,1775915416474,-10000.01,8.548e-05,2]
[420290288,1775915417072,-10000.01,8.548e-05,2]
[420290289,1775915417205,-10000.01,8.548e-05,2]
[420290290,1775915417370,-10000.01,8.548e-05,2]
[420290291,1775915417474,-10000.01,8.548e-05,2]
[420290292,1775915417749,-10000.01,8.548e-05,2]
[420290293,1775915417893,-10000.01,8.548e-05,2]
[420290294,1775915418044,-10000.01,8.548e-05,2]
[420290295,1775915418278,-10000.01,8.548e-05,2]
[420290296,1775915418452,-10000.01,8.548e-05,2]
[420290297,1775915418612,-10000.01,8.548e-05,2]
[420290298,1775915418861,-10000.01,8.548e-05,2]
[420290299,1775915419126,-10000.01,8.548e-05,2]
[420290301,1775915434174,-296.369996,8.548e-05,2]
[420290302,1775915434203,-7147.83399468,8.548e-05,2]
[420290303,1775915434214,-616.38608097,8.548e-05,2]
[420290304,1775915434290,-1623.06639354,8.548e-05,2]
[420290305,1775915434305,-81331.90559818,8.548e-05,2]
[420290306,1775915434377,-895.86861586,8.548e-05,2]
[420290321,1775915438255,-4897.49151961,8.548e-05,2]
[420290324,1775915438427,-19770.84903613,8.548e-05,2]
[420290325,1775915438442,-151.0,8.645e-05,2]
[420290326,1775915438454,-150.0,8.646e-05,2]
[420290327,1775915438465,-150.0,8.646e-05,2]
[420290328,1775915438475,-300.0,8.646e-05,2]
[420290329,1775915438489,-300.0,8.646e-05,2]
[420290330,1775915438508,-250.0,8.646e-05,2]
[420290331,1775915438517,-250.0,8.647e-05,2]
[420290332,1775915438527,-27837.6774,8.648e-05,2]
[420290333,1775915438541,-800.0,9e-05,3]
[420290334,1775915438552,-200.0,9.076e-05,2]
[420290335,1775915438561,-8234.93559158,9.128e-05,2]
[420290336,1775915438571,-500.0,9.183e-05,2]
[420290337,1775915438585,-159.9824,9.183e-05,2]
[420290339,1775915438598,-500.0,9.183e-05,2]
[420290340,1775915438607,-150.0,9.2e-05,2]
[420290341,1775915438617,-500.0,9.203e-05,2]
[420290342,1775915438632,-500.0,9.203e-05,2]
[420290343,1775915438647,-160.20305427,9.203e-05,2]
[420290344,1775915438657,-500.0,9.208e-05,2]
[420290345,1775915438669,-271.51404671,9.208e-05,2]
[420290346,1775915438683,-500.0,9.208e-05,2]
[420290347,1775915438693,-500.0,9.208e-05,2]
[420290348,1775915438703,-150149.6963997,9.209e-05,2]
[420290349,1775915438714,-11966.9982931,9.228e-05,2]
[420290350,1775915438727,-40978.4390036,9.228e-05,2]
[420290351,1775915438737,-3586.7850794,9.228e-05,2]
[420290352,1775915438746,-2000.0,9.27e-05,2]
[420290354,1775915438758,-150.0,9.339e-05,2]
[420290356,1775915438778,-1500.0,9.378e-05,2]
[420290358,1775915438788,-2328.98,9.399e-05,2]
[420290360,1775915438798,-166.66,9.479e-05,2]
[420290362,1775915438814,-250.0,9.511e-05,2]
[420290364,1775915438823,-255.0,9.511e-05,2]
[420290366,1775915438833,-420.0,9.511e-05,2]
[420290368,1775915438843,-1000.0,9.751e-05,2]
[420290370,1775915438861,-153.3609081,0.0001,2]
[420290373,1775915438871,-440.63832736,0.0001,4]
[420290374,1775915438881,-500.0,0.0001,2]
[420290377,1775915438899,-220.31916368,0.0001,4]
[420290379,1775915438909,-151.0,0.0001,2]
[420290381,1775915438921,-151.0,0.0001,2]
[420290383,1775915438931,-151.0,0.0001,2]
[420290385,1775915438951,-151.0,0.0001,2]
[420290387,1775915438962,-151.0,0.0001,2]
[420290390,1775915438972,-151.0,0.0001,2]
[420290392,1775915438989,-151.0,0.0001,2]
[420290394,1775915439004,-151.0,0.0001,2]
[420290396,1775915439016,-151.0,0.0001,2]
[420290397,1775915439031,-151.0,0.0001,2]
[420290400,1775915439061,-151.0,0.0001,2]
[420290402,1775915439071,-151.0,0.0001,2]
[420290403,1775915439081,-151.0,0.0001,2]
[420290406,1775915439107,-1600.0,0.0001,3]
[420290408,1775915439120,-151.0,0.0001,2]
[420290409,1775915439144,-200.0,0.0001,2]
[420290411,1775915439153,-151.0,0.0001,2]
[420290413,1775915439173,-151.0,0.0001,2]
[420290416,1775915439191,-151.0,0.0001,2]
[420290417,1775915439209,-151.0,0.0001,2]
[420290420,1775915439219,-500.0,0.0001,2]
[420290422,1775915439230,-151.0,0.0001,2]
[420290424,1775915439248,-500.0,0.0001,2]
[420290426,1775915439258,-151.0,0.0001,2]
[420290428,1775915439269,-500.0,0.0001,2]
[420290430,1775915439285,-151.0,0.0001,2]
[420290432,1775915439311,-500.0,0.0001,2]
[420290434,1775915439327,-151.0,0.0001,2]
[420290436,1775915439338,-500.0,0.0001,2]
[420290438,1775915439363,-151.0,0.0001,2]
[420290440,1775915439374,-789.08228422,0.0001,2]
[420290442,1775915439395,-265.82583431,0.00010148,2]
[420290444,1775915439406,-500.0,0.00010148,2]
[420290446,1775915439417,-361.68221069,0.00010148,2]
[420290447,1775915439440,-500.0,0.00010148,2]
[420290449,1775915439461,-500.0,0.00010148,2]
[420290451,1775915439471,-500.0,0.00010148,2]
[420290453,1775915439484,-344.6999048,0.00010148,2]
[420290455,1775915439498,-377.1470985,0.00010148,2]
[420290457,1775915439512,-500.0,0.00010148,2]
[420290460,1775915439524,-235087.71,0.00010149,2]
[420290462,1775915439535,-151.0,0.00010149,2]
[420290463,1775915439544,-151.0,0.00010149,2]
[420290465,1775915439557,-151.0,0.00010149,2]
[420290467,1775915439571,-163.6329,0.00010149,2]
[420290469,1775915439581,-151.0,0.00010149,2]
[420290471,1775915439591,-151.0,0.00010149,2]
[420290472,1775915439603,-151.0,0.00010149,2]
[420290473,1775915439615,-151.0,0.00010149,2]
[420290474,1775915439625,-446.9473,0.00010173,2]
[420290475,1775915439643,-500.0,0.00010173,2]
[420290476,1775915439657,-500.0,0.00010274,2]
[420290477,1775915439666,-1500.0,0.00010298,2]
[420290478,1775915439681,-2000.0,0.00010428,2]
[420290479,1775915439696,-66314.27066302,0.00010437,2]
[420290480,1775915439705,-433.0,0.00010462,2]
[420290481,1775915439720,-235.0,0.00010462,2]
[420290482,1775915439733,-500.0,0.00010473,2]
[420290483,1775915439744,-500.0,0.00010548,2]
[420290484,1775915439753,-200.0,0.00010548,2]
[420290486,1775915439767,-11966.9982931,0.00010578,2]
[420290488,1775915439794,-170.0644,0.000106,2]
[420290490,1775915439806,-500.0,0.00010822,2]
[420290492,1775915439818,-454.45934397,0.00010846,2]
[420290543,1775915440711,-0.3668536,0.00010846,2]
[420290546,1775915440725,-280.69925194,0.00010846,2]
[420290548,1775915440735,-500.0,0.00010904,2]
[420290550,1775915440747,-290.87,0.00010951,2]
[420290552,1775915440758,-500.0,0.00010959,2]
[420290554,1775915440768,-150.0,0.00010959,2]
[420290556,1775915440777,-151.0,0.00010959,2]
[420290558,1775915440790,-151.0,0.00010959,2]
[420290560,1775915440803,-179.727262,0.00010959,2]
[420290562,1775915440817,-150.0,0.00010959,2]
[420290564,1775915440827,-211.657199,0.00010959,2]
[420290566,1775915440836,-211.657199,0.00010959,2]
[420290568,1775915440847,-211.657199,0.00010959,2]
[420290570,1775915440859,-211.657199,0.00010959,2]
[420290572,1775915440869,-338.57984042,0.00010999,2]
[420290574,1775915440880,-1000.0,0.00011021,2]
[420290576,1775915440893,-168.69,0.00011036,2]
[420290578,1775915440903,-166.66,0.00011043,2]
[420290580,1775915440917,-200.0,0.00011096,2]
[420290582,1775915440926,-19424.10205251,0.00011099,2]
[420290584,1775915440935,-19424.10205246,0.00011099,2]
[420290586,1775915440950,-151.0,0.00011099,2]
[420290588,1775915440967,-151.0,0.00011099,2]
[420290590,1775915440977,-151.0,0.00011099,2]
[420290592,1775915440987,-151.0,0.00011099,2]
[420290594,1775915440998,-151.0,0.00011099,2]
[420290596,1775915441013,-151.0,0.00011099,2]
[420290598,1775915441028,-211.657199,0.00011099,2]
[420290600,1775915441040,-211.657199,0.00011099,2]
[420290602,1775915441052,-211.657199,0.00011099,2]
[420290605,1775915441070,-211.657199,0.00011099,2]
[420290607,1775915441079,-33502.9258039,0.0001118,2]
[420290609,1775915441093,-151.0,0.00011227,2]
[420290611,1775915441108,-151.0,0.00011227,2]
[420290613,1775915441126,-151.0,0.00011227,2]
[420290615,1775915441139,-9143.5256575,0.00011227,2]
[420290617,1775915441149,-6065.31,0.00011281,2]
[420290619,1775915441189,-9461.78,0.00011281,2]
[420290621,1775915441203,-971.84,0.00011281,2]
[420290623,1775915441213,-656.59,0.00011281,2]
[420290625,1775915441244,-14118.43,0.00011281,2]
[420290627,1775915441257,-150.99,0.00011281,2]
[420290629,1775915441291,-283.0,0.00011508,2]
[420290631,1775915441302,-1500.0,0.00011568,2]
[420290633,1775915441316,-2000.0,0.00011587,2]
[420290635,1775915441334,-7475.5132,0.0001162,2]
[420290637,1775915441346,-178.5755139,0.00011641,2]
[420290640,1775915441360,-200.0,0.00011644,2]
[420290642,1775915441383,-2040.1963442,0.00011673,2]
[420290644,1775915441409,-250.0,0.00011692,2]
[420290646,1775915441423,-11966.9982931,0.00011928,2]
[420290648,1775915441447,-192.8127,0.00012,2]